lending/lending_fUSD_20250303
["ID","MTS","AMOUNT","RATE_DAILY","PERIOD"]
[355206065,1741008645588,-500.0,0.00014881,2]
[355206066,1741008645598,-500.0,0.00014881,2]
[355206067,1741008645607,-500.0,0.00014881,2]
[355206068,1741008645616,-500.0,0.00014881,2]
[355206069,1741008645625,-500.0,0.00014881,2]
[355206070,1741008645635,-508.93745928,0.00014881,2]
[355206071,1741008645644,-500.0,0.00014881,2]
[355206072,1741008645653,-500.0,0.00014881,2]
[355206073,1741008645662,-500.0,0.00014881,2]
[355206074,1741008645672,-500.0,0.00014881,2]
[355206075,1741008645681,-500.0,0.00014881,2]
[355206076,1741008645690,-500.0,0.00014881,2]
[355206077,1741008645699,-241.52032681,0.00014881,2]
[355206078,1741008645709,-517.74329596,0.00014881,2]
[355206079,1741008645719,-500.0,0.00014881,2]
[355206080,1741008645728,-500.0,0.00014881,2]
[355206081,1741008645738,-500.0,0.00014881,2]
[355206082,1741008645748,-500.0,0.00014881,2]
[355206083,1741008645758,-500.0,0.00014881,2]
[355206084,1741008645768,-500.0,0.00014881,2]
[355206085,1741008645779,-500.0,0.00014881,2]
[355206086,1741008645789,-500.0,0.00014881,2]
[355206087,1741008645798,-500.0,0.00014881,2]
[355206088,1741008645808,-500.0,0.00014881,2]
[355206089,1741008645818,-500.0,0.00014881,2]
[355206090,1741008645828,-516.74610445,0.00014881,2]
[355206091,1741008645837,-500.0,0.00014881,2]
[355206092,1741008645846,-500.0,0.00014881,2]
[355206093,1741008645856,-500.0,0.00014881,2]
[355206094,1741008645865,-1352.79,0.00014881,2]
[355206095,1741008645874,-500.0,0.00014881,2]
[355206096,1741008645884,-500.0,0.00014881,2]
[355206097,1741008645894,-500.0,0.00014881,2]
[355206098,1741008645903,-500.0,0.00014881,2]
[355206099,1741008645913,-500.0,0.00014881,2]
[355206100,1741008645922,-500.0,0.00014881,2]
[355206101,1741008645932,-500.0,0.00014881,2]
[355206102,1741008645941,-500.0,0.00014881,2]
[355206103,1741008645951,-500.0,0.00014881,2]
[355206104,1741008645960,-500.0,0.00014881,2]
[355206105,1741008645969,-525.97873336,0.00014881,2]
[355206106,1741008645979,-500.0,0.00014881,2]
[355206107,1741008645988,-500.0,0.00014881,2]
[355206108,1741008645998,-500.0,0.00014881,2]
[355206109,1741008646007,-213.77580244,0.00014881,2]
[355206110,1741008646016,-434.67052129,0.00014881,2]
[355206111,1741008646367,-65.32947871,0.00014881,2]
[355206112,1741008646378,-500.0,0.00014881,2]
[355206113,1741008646388,-508.05851474,0.00014881,2]
[355206114,1741008646399,-500.0,0.00014881,2]
[355206115,1741008646409,-500.0,0.00014881,2]
[355206116,1741008646418,-500.0,0.00014881,2]
[355206117,1741008646428,-500.0,0.00014881,2]
[355206118,1741008646437,-500.0,0.00014881,2]
[355206119,1741008646447,-500.0,0.00014881,2]
[355206120,1741008646457,-500.0,0.00014881,2]
[355206121,1741008646466,-500.0,0.00014881,2]
[355206122,1741008646476,-500.0,0.00014881,2]
[355206123,1741008646486,-500.0,0.00014881,2]
[355206124,1741008646495,-500.0,0.00014881,2]
[355206125,1741008646505,-500.0,0.00014881,2]
[355206126,1741008646515,-1159.13,0.00014881,2]
[355206127,1741008646525,-500.0,0.00014881,2]
[355206128,1741008646535,-859.36,0.00014881,2]
[355206129,1741008646544,-500.0,0.00014881,2]
[355206130,1741008646553,-500.0,0.00014881,2]
[355206131,1741008646564,-500.0,0.00014881,2]
[355206133,1741008646692,-202.65254659,0.00014881,2]
[355206134,1741008646702,-155.53689919,0.00014881,2]
[355206135,1741008646712,-500.0,0.00014881,2]
[355206136,1741008646721,-500.0,0.00014881,2]
[355206137,1741008646731,-500.0,0.00014881,2]
[355206138,1741008646740,-500.0,0.00014881,2]
[355206139,1741008646749,-199.4049677,0.00014881,2]
[355206140,1741008646759,-500.0,0.00014881,2]
[355206141,1741008646768,-500.0,0.00014881,2]
[355206142,1741008646779,-1422.25,0.00014881,2]
[355206143,1741008646789,-500.0,0.00014881,2]
[355206144,1741008646798,-500.0,0.00014881,2]
[355206145,1741008646807,-500.0,0.00014881,2]
[355206146,1741008646816,-500.0,0.00014881,2]
[355206147,1741008646826,-500.0,0.00014881,2]
[355206148,1741008646835,-500.0,0.00014881,2]
[355206149,1741008646844,-500.0,0.00014881,2]
[355206150,1741008646853,-500.0,0.00014881,2]
[355206151,1741008646862,-500.0,0.00014881,2]
[355206152,1741008646871,-513.91145384,0.00014881,2]
[355206153,1741008646880,-500.0,0.00014881,2]
[355206154,1741008646890,-500.0,0.00014881,2]
[355206155,1741008646899,-500.0,0.00014881,2]
[355206156,1741008646908,-500.0,0.00014881,2]
[355206157,1741008646917,-510.38335588,0.00014881,2]
[355206158,1741008646926,-500.0,0.00014881,2]
[355206159,1741008646935,-500.0,0.00014881,2]
[355206160,1741008646944,-1256.3,0.00014881,2]
[355206161,1741008646954,-500.0,0.00014881,2]
[355206162,1741008646964,-500.0,0.00014881,2]
[355206163,1741008646973,-500.0,0.00014881,2]
[355206164,1741008646982,-500.0,0.00014881,2]
[355206165,1741008646991,-500.0,0.00014881,2]
[355206166,1741008647000,-500.0,0.00014881,2]
[355206167,1741008647009,-500.0,0.00014881,2]
[355206168,1741008647018,-500.0,0.00014881,2]
[355206169,1741008647028,-500.0,0.00014881,2]
[355206170,1741008647038,-575.24,0.00014881,2]
[355206171,1741008647049,-593.12700432,0.00014881,2]
[355206172,1741008647058,-500.0,0.00014881,2]
[355206173,1741008647067,-500.0,0.00014881,2]
[355206174,1741008647077,-531.15747234,0.00014881,2]
[355206175,1741008647086,-500.0,0.00014881,2]
[355206176,1741008647095,-522.19161912,0.00014881,2]
[355206177,1741008647105,-500.0,0.00014881,2]
[355206178,1741008647115,-25011.48,0.00014881,2]
[355206179,1741008647124,-500.0,0.00014881,2]
[355206180,1741008647135,-500.0,0.00014881,2]
[355206181,1741008647144,-500.0,0.00014881,2]
[355206182,1741008647154,-500.0,0.00014881,2]
[355206183,1741008647165,-500.0,0.00014881,2]
[355206184,1741008647175,-500.0,0.00014881,2]
[355206185,1741008647186,-502.1,0.00014881,2]
[355206186,1741008647200,-500.0,0.00014881,2]
[355206187,1741008647210,-500.0,0.00014881,2]
[355206188,1741008647219,-500.0,0.00014881,2]
[355206189,1741008647228,-500.0,0.00014881,2]
[355206190,1741008647238,-500.0,0.00014881,2]
[355206191,1741008647248,-2325.2,0.00014881,2]
[355206192,1741008647258,-500.0,0.00014881,2]
[355206193,1741008647271,-500.0,0.00014881,2]
[355206194,1741008647282,-517.25392123,0.00014881,2]
[355206195,1741008647292,-1000.0,0.00014881,2]
[355206196,1741008647302,-500.0,0.00014881,2]
[355206197,1741008647311,-500.0,0.00014881,2]
[355206198,1741008647321,-500.0,0.00014881,2]
[355206199,1741008647330,-9138.6,0.00014881,2]
[355206200,1741008647339,-516.79866626,0.00014881,2]
[355206201,1741008647348,-500.0,0.00014881,2]
[355206202,1741008647358,-502.43,0.00014881,2]
[355206203,1741008647367,-500.0,0.00014881,2]
[355206204,1741008647376,-500.0,0.00014881,2]
[355206205,1741008647385,-1251.97,0.00014881,2]
[355206206,1741008647396,-500.0,0.00014881,2]
[355206207,1741008647405,-500.0,0.00014881,2]
[355206208,1741008647414,-500.0,0.00014881,2]
[355206209,1741008647424,-500.0,0.00014881,2]
[355206210,1741008647434,-500.0,0.00014881,2]
[355206211,1741008647444,-500.0,0.00014881,2]
[355206212,1741008647453,-827.55,0.00014881,2]
[355206213,1741008647463,-500.0,0.00014881,2]
[355206214,1741008647472,-511.94170326,0.00014881,2]
[355206215,1741008647482,-500.0,0.00014881,2]
[355206216,1741008647491,-507.40944954,0.00014881,2]
[355206217,1741008647500,-511.70908566,0.00014881,2]
[355206218,1741008647510,-500.0,0.00014881,2]
[355206219,1741008647519,-500.0,0.00014881,2]
[355206220,1741008647530,-500.0,0.00014881,2]
[355206221,1741008647539,-548.29907933,0.00014881,2]
[355206222,1741008647549,-500.0,0.00014881,2]
[355206223,1741008647559,-500.0,0.00014881,2]
[355206224,1741008647569,-500.0,0.00014881,2]
[355206225,1741008647578,-500.0,0.00014881,2]
[355206226,1741008647588,-660.76,0.00014881,2]
[355206227,1741008647597,-500.0,0.00014881,2]
[355206228,1741008647607,-518.25631574,0.00014881,2]
[355206229,1741008647616,-500.0,0.00014881,2]
[355206230,1741008647625,-500.0,0.00014881,2]
[355206231,1741008647635,-799.0,0.00014881,2]
[355206232,1741008647644,-1597.86,0.00014881,2]
[355206233,1741008647653,-500.0,0.00014881,2]
[355206234,1741008647663,-500.0,0.00014881,2]
[355206235,1741008647672,-500.0,0.00014881,2]
[355206236,1741008647682,-516.05151962,0.00014882,2]
[355206237,1741008647691,-500.0,0.00014882,2]
[355206238,1741008647700,-500.0,0.00014882,2]
[355206239,1741008647710,-500.0,0.00014882,2]
[355206240,1741008647719,-500.0,0.00014882,2]
[355206241,1741008647729,-500.0,0.00014882,2]
[355206242,1741008647738,-500.0,0.00014882,2]
[355206243,1741008647747,-500.0,0.00014882,2]
[355206244,1741008647757,-500.0,0.00014882,2]
[355206245,1741008647766,-228.32292035,0.00014882,2]
[355206246,1741008647775,-500.0,0.00014882,2]
[355206247,1741008647784,-534.07170634,0.00014882,2]
[355206248,1741008647793,-500.0,0.00014882,2]
[355206249,1741008647803,-500.0,0.00014882,2]
[355206250,1741008647811,-500.0,0.00014882,2]
[355206251,1741008647821,-500.0,0.00014882,2]
[355206252,1741008647834,-500.0,0.00014882,2]
[355206253,1741008647843,-500.0,0.00014882,2]
[355206254,1741008647853,-500.0,0.00014882,2]
[355206255,1741008647864,-500.0,0.00014882,2]
[355206256,1741008647873,-511.47022987,0.00014882,2]
[355206257,1741008647883,-500.0,0.00014882,2]
[355206258,1741008647892,-500.0,0.00014882,2]
[355206259,1741008647901,-500.0,0.00014882,2]
[355206260,1741008647911,-500.0,0.00014882,2]
[355206261,1741008647921,-500.0,0.00014882,2]
[355206262,1741008647930,-500.0,0.00014882,2]
[355206263,1741008647939,-500.0,0.00014882,2]
[355206264,1741008647949,-500.0,0.00014882,2]
[355206265,1741008647959,-510.51073649,0.00014882,2]
[355206266,1741008647969,-509.5460594,0.00014882,2]
[355206267,1741008647979,-500.0,0.00014882,2]
[355206268,1741008647989,-500.0,0.00014882,2]
[355206269,1741008647998,-510.12786371,0.00014882,2]
[355206270,1741008648007,-500.0,0.00014882,2]
[355206271,1741008648016,-500.0,0.00014882,2]
[355206272,1741008648026,-509.48596065,0.00014882,2]
[355206273,1741008648035,-515.49182177,0.00014882,2]
[355206274,1741008648045,-500.0,0.00014882,2]
[355206275,1741008648055,-500.0,0.00014882,2]
[355206276,1741008648064,-509.82153811,0.00014882,2]
[355206277,1741008648074,-500.0,0.00014882,2]
[355206278,1741008648083,-500.0,0.00014882,2]
[355206279,1741008648093,-500.0,0.00014882,2]
[355206280,1741008648221,-500.0,0.00014882,2]
[355206281,1741008648232,-502.04,0.00014882,2]
[355206282,1741008648243,-500.0,0.00014882,2]
[355206283,1741008648254,-500.0,0.00014882,2]
[355206284,1741008648265,-500.0,0.00014882,2]
[355206285,1741008648278,-682.34,0.00014882,2]
[355206286,1741008648289,-500.0,0.00014882,2]
[355206287,1741008648299,-500.0,0.00014882,2]
[355206288,1741008648310,-1348.24,0.00014882,2]
[355206289,1741008648320,-503.59,0.00014882,2]
[355206290,1741008648329,-574.4,0.00014882,2]
[355206291,1741008648338,-500.0,0.00014882,2]
[355206292,1741008648348,-500.0,0.00014882,2]
[355206293,1741008648358,-500.0,0.00014882,2]
[355206294,1741008648368,-500.0,0.00014886,2]
[355206295,1741008648377,-507.03047586,0.00014886,2]
[355206296,1741008648387,-299.8615219,0.00014886,2]
[355206297,1741008648397,-649.98916388,0.00014886,2]
[355206298,1741008648407,-424.78676118,0.00014886,2]
[355206299,1741008648416,-509.21672374,0.00014886,2]
[355206300,1741008648427,-165.47854032,0.00014886,2]
[355206301,1741008648436,-500.0,0.00014886,2]
[355206302,1741008648446,-500.0,0.00014886,2]
[355206303,1741008648455,-507.18263196,0.00014886,2]
[355206304,1741008648465,-304.86368156,0.00014886,2]
[355206305,1741008648475,-266.77204925,0.00014886,2]
[355206306,1741008648485,-505.55970039,0.00014886,2]
[355206307,1741008648495,-508.65246303,0.00014886,2]
[355206308,1741008648506,-500.0,0.00014886,2]
[355206309,1741008648516,-500.0,0.00014886,2]
[355206310,1741008648527,-500.0,0.00014886,2]
[355206311,1741008648539,-500.0,0.00014886,2]
[355206312,1741008648549,-508.55435715,0.00014886,2]
[355206313,1741008648559,-500.0,0.00014886,2]
[355206314,1741008648568,-511.36302126,0.00014886,2]
[355206315,1741008648578,-468.79017806,0.00014886,2]
[355206316,1741008648588,-510.6765427,0.00014886,2]
[355206317,1741008648598,-500.0,0.00014886,2]
[355206318,1741008648608,-513.23824414,0.00014886,2]
[355206319,1741008648618,-500.0,0.00014886,2]
[355206320,1741008648628,-500.38508115,0.00014886,2]
[355206321,1741008648638,-507.55076765,0.00014886,2]
[355206322,1741008648648,-516.17643635,0.00014886,2]
[355206323,1741008648657,-500.0,0.00014886,2]
[355206324,1741008648667,-500.0,0.00014886,2]
[355206325,1741008648676,-500.0,0.00014886,2]
[355206326,1741008648686,-504.68252331,0.00014886,2]
[355206327,1741008648696,-500.0,0.00014886,2]
[355206328,1741008648706,-500.0,0.00014886,2]
[355206329,1741008648715,-505.99100031,0.00014886,2]
[355206330,1741008648725,-500.0,0.00014886,2]
[355206331,1741008648735,-521.36343777,0.00014886,2]
[355206332,1741008648745,-500.0,0.00014886,2]
[355206333,1741008648754,-506.00129804,0.00014886,2]
[355206334,1741008648764,-500.0,0.00014886,2]
[355206335,1741008648774,-500.0,0.00014886,2]
[355206336,1741008648787,-505.1224332,0.00014886,2]
[355206337,1741008648797,-500.0,0.00014886,2]
[355206338,1741008648806,-500.0,0.00014886,2]
[355206339,1741008648816,-500.0,0.00014886,2]
[355206340,1741008648826,-500.0,0.00014886,2]
[355206341,1741008648836,-500.0,0.00014886,2]
[355206342,1741008648846,-500.0,0.00014886,2]
[355206343,1741008648856,-500.0,0.00014886,2]
[355206344,1741008648866,-500.0,0.00014886,2]
[355206345,1741008648876,-513.65675765,0.00014886,2]
[355206346,1741008648889,-500.0,0.00014886,2]
[355206347,1741008648911,-500.0,0.00014886,2]
[355206348,1741008648928,-500.0,0.00014886,2]
[355206349,1741008648947,-500.0,0.00014886,2]
[355206350,1741008648967,-500.0,0.00014886,2]
[355206351,1741008648984,-500.0,0.00014886,2]
[355206352,1741008649005,-500.0,0.00014886,2]
[355206353,1741008649027,-500.0,0.00014886,2]
[355206354,1741008649047,-500.0,0.00014886,2]
[355206355,1741008649067,-500.0,0.00014886,2]
[355206356,1741008649086,-500.0,0.00014886,2]
[355206357,1741008649103,-500.0,0.00014886,2]
[355206358,1741008649119,-500.0,0.00014886,2]
[355206359,1741008649139,-500.0,0.00014886,2]
[355206360,1741008649152,-500.0,0.00014886,2]
[355206361,1741008649171,-500.0,0.00014886,2]
[355206362,1741008649186,-500.0,0.00014886,2]
[355206363,1741008649204,-500.0,0.00014886,2]
[355206364,1741008649220,-500.0,0.00014886,2]
[355206365,1741008649236,-500.0,0.00014886,2]
[355206366,1741008649255,-499.1946893,0.00014886,2]
[355206367,1741008649272,-500.0,0.00014886,2]
[355206368,1741008649295,-500.0,0.00014886,2]
[355206369,1741008649313,-500.0,0.00014886,2]
[355206370,1741008649331,-500.0,0.00014886,2]
[355206371,1741008649349,-500.0,0.00014886,2]
[355206372,1741008649365,-500.0,0.00014886,2]
[355206373,1741008649382,-500.0,0.00014886,2]
[355206374,1741008649399,-500.0,0.00014886,2]
[355206375,1741008649416,-500.0,0.00014886,2]
[355206376,1741008649433,-500.0,0.00014886,2]
[355206377,1741008649449,-500.0,0.00014886,2]
[355206378,1741008649466,-500.0,0.00014886,2]
[355206379,1741008649482,-1251.045,0.00014886,2]
[355206380,1741008649499,-500.0,0.00014886,2]
[355206381,1741008649515,-500.0,0.00014886,2]
[355206382,1741008649530,-500.0,0.00014886,2]
[355206383,1741008649545,-500.0,0.00014886,2]
[355206384,1741008649562,-500.0,0.00014886,2]
[355206385,1741008649578,-500.0,0.00014886,2]
[355206386,1741008649594,-500.0,0.00014886,2]
[355206387,1741008649610,-500.0,0.00014886,2]
[355206388,1741008649626,-500.0,0.00014886,2]
[355206389,1741008649640,-500.0,0.00014886,2]
[355206390,1741008649656,-500.0,0.00014886,2]
[355206391,1741008649671,-500.0,0.00014886,2]
[355206392,1741008649686,-500.0,0.00014886,2]
[355206393,1741008649700,-500.0,0.00014886,2]
[355206394,1741008649715,-500.0,0.00014886,2]
[355206395,1741008649730,-500.0,0.00014886,2]
[355206396,1741008649746,-500.0,0.00014886,2]
[355206397,1741008649761,-500.0,0.00014886,2]
[355206398,1741008649775,-500.0,0.00014886,2]
[355206399,1741008649790,-500.0,0.00014886,2]
[355206400,1741008649804,-508.01201702,0.00014886,2]
[355206401,1741008649820,-500.0,0.00014886,2]
[355206402,1741008649835,-500.0,0.00014886,2]
[355206403,1741008649850,-500.0,0.00014886,2]
[355206404,1741008649864,-500.0,0.00014886,2]
[355206405,1741008649878,-500.0,0.00014886,2]
[355206406,1741008649894,-500.0,0.00014886,2]
[355206407,1741008649909,-500.0,0.000149,2]
[355206408,1741008649924,-47210.19638927,0.000149,2]
[355206409,1741008649940,-429.87895021,0.000149,2]
[355206410,1741008649949,-190.92620662,0.000149,2]
[355206411,1741008649959,-1269.0,0.00014958,2]
[355206412,1741008649968,-2151.409,0.00014958,2]
[355206413,1741008649978,-1112.0,0.00014958,2]
[355206414,1741008649988,-310.434,0.00014958,2]
[355206415,1741008649997,-642.0,0.00014958,2]
[355206416,1741008650210,-150.0,0.00014958,2]
[355206417,1741008650220,-500.0,0.00014973,2]
[355206418,1741008650230,-160.2091181,0.00014973,2]
[355206419,1741008650240,-500.25622217,0.00014973,2]
[355206420,1741008650250,-30577.82553868,0.00014979,2]
[355206421,1741008650286,-500.0,0.00014881,2]
[355206422,1741008650296,-6823.75767579,0.00014979,2]
[355206423,1741008650307,-10188.76987644,0.00014979,2]
[355206424,1741008650335,-1225.28875366,0.00014979,2]
[355206425,1741008651059,-2465.8065,0.0001478,2]
[355206426,1741008651070,-500.0,0.00014881,2]
[355206427,1741008651080,-2861.14830421,0.00014958,2]
[355206428,1741008651092,-1066.85169579,0.00014958,2]
[355206429,1741008651102,-605.43400389,0.00014979,2]
[355206430,1741008651121,-948.09401731,0.00014979,2]
[355206431,1741008651138,-71344.62109122,0.00014979,2]
[355206432,1741008651148,-3527.583352,0.00014994,2]
[355206433,1741008651158,-8188.52245114,0.00014998,2]
[355206434,1741008651168,-739.55,0.00014999,2]
[355206435,1741008651178,-500.0,0.00014999,2]
[355206436,1741008651188,-500.0,0.00014999,2]
[355206437,1741008651201,-500.0,0.00014999,2]
[355206438,1741008651211,-500.0,0.00014999,2]
[355206439,1741008651221,-500.0,0.00014999,2]
[355206440,1741008651230,-500.0,0.00014999,2]
[355206441,1741008651241,-500.0,0.00014999,2]
[355206442,1741008651251,-500.0,0.00014999,2]
[355206443,1741008651260,-500.0,0.00014999,2]
[355206444,1741008651270,-500.0,0.00014999,2]
[355206445,1741008651282,-500.0,0.00014999,2]
[355206446,1741008651292,-500.0,0.00014999,2]
[355206447,1741008651302,-500.0,0.00014999,2]
[355206448,1741008651312,-520.73091294,0.00014999,2]
[355206449,1741008651322,-736.0,0.00014999,2]
[355206450,1741008651331,-319595.63476955,0.00015,2]
[355206451,1741008651785,-496.75,0.00014881,2]
[355206452,1741008651877,-140.23,0.00014881,2]
[355206453,1741008651887,-53502.07721981,0.00015,2]
[355206454,1741008651896,-116879.14316023,0.00015,2]
[355206455,1741008651908,-1784.70016375,0.00015,2]
[355206456,1741008651919,-314.939901,0.00015,2]
[355206457,1741008651942,-274.34888118,0.00015,2]
[355206460,1741008849466,324.08,0.00014116,2]
[355206461,1741009053901,1000.0,0.0001405,2]
[355206462,1741009165191,160.58,0.0001121,2]
[355206463,1741009302446,250.0,0.00013958,2]
[355206464,1741009395107,182.35,0.00013958,2]
[355206465,1741009416636,5014.78169427,0.0002,120]
[355206466,1741009600734,2252.62,0.00013874,2]
[355206467,1741009603237,23900.0,0.00013874,2]
[355206468,1741009728015,214.93119304,0.00014,4]
[355206469,1741009778501,24129.71186449,0.000144,5]
[355206470,1741009818883,400.0,0.000141,5]
[355206471,1741009820906,164.27,0.00013955,2]
[355206472,1741009820983,800.0,0.000142,5]
[355206473,1741009823115,1200.0,0.000143,5]
[355206474,1741009825209,1600.0,0.000144,5]
[355206475,1741009827779,2000.0,0.000145,5]
[355206485,1741009831811,-400.0,0.000146,5]
[355206486,1741009831821,-5000.0,0.000147,2]
[355206487,1741009831831,-561.81795246,0.000147,2]
[355206488,1741009831842,-400.0,0.000147,5]
[355206489,1741009831853,-550.0,0.0001471,2]
[355206490,1741009831865,-162.3975038,0.00014719,2]
[355206491,1741009831876,-197.69803234,0.00014719,2]
[355206492,1741009831887,-289.38484104,0.00014719,2]
[355206493,1741009831898,-150.0,0.00014757,2]
[355206494,1741009831909,-16.33667713,0.00014757,2]
[355206495,1741009831956,-149.20842287,0.00014757,2]
[355206496,1741009831968,-1178.5655,0.0001478,2]
[355206497,1741009831977,-739.5345,0.0001478,2]
[355206498,1741009831987,-606.89157713,0.0001478,2]
[355206499,1741009832000,-390.8237219,0.0001478,2]
[355206500,1741009832102,-774.42493428,0.0001478,2]
[355206501,1741009832123,-2814.82306669,0.0001478,2]
[355206502,1741009832133,-1000.0,0.0001478,2]
[355206503,1741009832142,-500.0,0.0001478,2]
[355206504,1741009832151,-6537.41250907,0.0001478,2]
[355206505,1741009832162,-3499.37093081,0.0001478,2]
[355206506,1741009832174,-346.36386012,0.0001478,2]
[355206507,1741009832183,-397.1099,0.0001478,2]
[355206508,1741009832192,-3714.62377352,0.0001478,2]
[355206509,1741009832211,-500.0,0.0001478,2]
[355206510,1741009832223,-1434.30223989,0.0001478,2]
[355206556,1741009838189,-1875.74,0.0001478,2]
[355206557,1741009838209,-3448.71328787,0.0001478,2]
[355206558,1741009838220,-1008.0,0.0001478,2]
[355206561,1741009838240,-3330.107814,0.0001478,2]
[355206579,1741009839824,-46859.88470905,0.0001478,2]
[355206580,1741009840101,-10840.56615735,0.0001478,2]
[355206581,1741009840160,-9370.34893019,0.0001478,2]
[355206603,1741009843002,-1320.62098813,0.0001478,2]
[355206604,1741009843012,-80133.46289156,0.0001478,2]
[355206605,1741009843021,-999.99,0.00014782,2]
[355206606,1741009843031,-150.99,0.00014782,2]
[355206607,1741009843040,-1033.96,0.00014798,2]
[355206608,1741009843050,-700.16,0.00014798,2]
[355206609,1741009843059,-1204.97,0.00014798,2]
[355206610,1741009843069,-697.03,0.00014798,2]
[355206611,1741009843078,-937.42,0.00014798,2]
[355206612,1741009843088,-1190.75,0.00014798,2]
[355206613,1741009843098,-500.0,0.00014798,2]
[355206614,1741009843109,-1756.07,0.00014798,2]
[355206615,1741009843118,-500.0,0.00014798,2]
[355206616,1741009843128,-500.0,0.00014798,2]
[355206617,1741009843137,-1548.21,0.00014798,2]
[355206618,1741009843146,-598.29,0.00014798,2]
[355206619,1741009843156,-500.0,0.00014798,2]
[355206620,1741009843165,-2178.76,0.00014798,2]
[355206621,1741009843174,-500.0,0.00014798,2]
[355206622,1741009843184,-986.54,0.00014798,2]
[355206623,1741009843193,-649.29,0.00014798,2]
[355206624,1741009843203,-8492.77,0.00014798,2]
[355206625,1741009843212,-621.04,0.00014798,2]
[355206627,1741009843222,-1026.82,0.00014798,2]
[355206629,1741009843231,-927.35,0.00014798,2]
[355206630,1741009843241,-500.0,0.00014798,2]
[355206631,1741009843250,-2486.44,0.00014798,2]
[355206632,1741009843259,-500.0,0.00014798,2]
[355206633,1741009843269,-882.58,0.00014798,2]
[355206634,1741009843278,-500.0,0.00014798,2]
[355206635,1741009843288,-719.6,0.00014798,2]
[355206636,1741009843297,-789.45,0.00014798,2]
[355206637,1741009843307,-904.45,0.00014798,2]
[355206638,1741009843316,-1225.16,0.00014798,2]
[355206639,1741009843325,-500.0,0.00014798,2]
[355206640,1741009843335,-6564.48,0.00014798,2]
[355206641,1741009843345,-500.0,0.00014798,2]
[355206642,1741009843354,-500.0,0.00014798,2]
[355206643,1741009843364,-500.0,0.00014798,2]
[355206644,1741009843374,-500.0,0.00014798,2]
[355206646,1741009843384,-500.0,0.00014799,2]
[355206648,1741009843393,-188.31034923,0.00014799,2]
[355206650,1741009843402,-471.20909911,0.00014799,2]
[355206652,1741009843411,-500.0,0.00014799,2]
[355206654,1741009843420,-500.0,0.00014799,2]
[355206656,1741009843430,-500.0,0.00014799,2]
[355206658,1741009843439,-500.0,0.00014799,2]
[355206659,1741009843448,-500.0,0.00014799,2]
[355206660,1741009843457,-500.0,0.00014799,2]
[355206661,1741009843466,-486.67948849,0.00014799,2]
[355206662,1741009843476,-500.0,0.00014799,2]
[355206663,1741009843485,-500.0,0.00014799,2]
[355206664,1741009843494,-500.0,0.00014799,2]
[355206665,1741009843504,-500.0,0.00014799,2]
[355206666,1741009843513,-500.0,0.00014799,2]
[355206667,1741009843522,-500.0,0.00014799,2]
[355206668,1741009843531,-500.0,0.00014799,2]
[355206669,1741009843540,-500.0,0.00014799,2]
[355206670,1741009843550,-525.15303915,0.00014799,2]